bitfinex/quotes_ETHUSD_20211001
["timestamp","ask_amount","ask_price","bid_price","bid_amount"]
[1633076549896,6.805e-05,3111.0,3110.9,49.72017737]
[1633076550096,6.805e-05,3111.0,3110.9,50.94889008]
[1633076550696,6.805e-05,3111.0,3110.9,25.608]
[1633076551099,6.805e-05,3111.0,3110.9,25.59677193]
[1633076551398,6.805e-05,3111.0,3110.9,26.13048641]
[1633076551601,6.805e-05,3111.0,3110.9,26.21736864]
[1633076551799,6.805e-05,3111.0,3110.9,28.38463845]
[1633076551997,6.805e-05,3111.0,3110.9,27.76404174]
[1633076552201,6.805e-05,3111.0,3110.9,28.22567646]
[1633076552602,6.805e-05,3111.0,3110.9,27.76404174]
[1633076552801,0.3344958,3111.0,3110.9,36.26444324]
[1633076552999,0.3344958,3111.0,3110.9,35.76404174]
[1633076553198,0.3344958,3111.0,3110.9,36.32200696]
[1633076553398,0.3344958,3111.0,3110.9,36.23727349]
[1633076553598,1.60006805,3111.0,3110.9,36.40212417]
[1633076553798,1.60006805,3111.0,3110.9,36.29323096]
[1633076553998,1.60006805,3111.0,3110.9,36.41497878]
[1633076554298,1.60006805,3111.0,3110.9,35.76404174]
[1633076554900,1.60006805,3111.0,3110.9,36.33730532]
[1633076555298,1.60006805,3111.0,3110.9,35.76404174]
[1633076555699,1.60006805,3111.0,3110.9,36.37072021]
[1633076555899,1.60006805,3111.0,3110.9,35.76404174]
[1633076556099,1.60006805,3111.0,3110.9,36.20524913]
[1633076556307,1.60006805,3111.0,3110.9,35.76404174]
[1633076556498,1.60006805,3111.0,3110.9,34.47004174]
[1633076557299,1.60006805,3111.0,3110.9,34.27704174]
[1633076557500,1.60006805,3111.0,3110.9,15.33704174]
[1633076557800,1.60006805,3111.0,3110.9,8.87326981]
[1633076558003,1.60006805,3111.0,3110.9,0.87326981]
[1633076558400,1.9344958,3111.0,3110.9,0.87326981]
[1633076558999,1.60006805,3111.0,3110.7,8.0]
[1633076560000,1.60006805,3111.0,3110.8,0.93194997]
[1633076560198,1.60006805,3111.0,3110.7,8.0]
[1633076562004,1.60006805,3111.0,3110.5,0.003]
[1633076562203,1.60006805,3111.0,3110.6,0.88926808]
[1633076562403,1.60006805,3111.0,3110.2,0.8841521]
[1633076562603,1.60006805,3111.0,3110.3,0.003]
[1633076563004,1.60006805,3111.0,3110.2,0.003]
[1633076563206,1.60006805,3111.0,3110.5,4.8221]
[1633076563603,1.60006805,3111.0,3110.5,0.97809291]
[1633076563863,1.93457396,3111.0,3110.5,0.97809291]
[1633076564461,1.93457396,3111.0,3110.5,5.80022291]
[1633076564665,1.60006805,3111.0,3110.5,5.80022291]
[1633076565468,1.60006805,3111.0,3110.5,0.003]
[1633076565870,1.60006805,3111.0,3110.4,0.003]
[1633076567066,1.60006805,3111.0,3110.8,1.03639295]
[1633076567267,1.60006805,3111.0,3110.4,0.003]
[1633076567268,1.60006805,3111.0,3110.4,0.99830475]
[1633076567666,1.60006805,3111.0,3110.5,0.003]
[1633076568666,0.003,3111.5,3110.9,0.004015]
[1633076568868,0.003,3112.0,3111.6,2.47947072]
[1633076569067,0.003,3112.0,3111.9,2.904458]
[1633076569268,0.003,3112.0,3111.9,7.57141383]
[1633076569467,0.003,3112.0,3111.9,1.09641383]
[1633076569868,0.003,3112.0,3111.9,0.197458]
[1633076570068,0.003,3112.0,3111.9,0.193]
[1633076570869,0.003,3112.0,3111.9,1.36592436]
[1633076571871,0.003,3112.0,3111.9,2.36592436]
[1633076572270,0.003,3112.0,3111.9,7.16592436]
[1633076572469,0.003,3112.0,3111.9,2.36592436]
[1633076573169,0.003,3112.0,3111.9,6.10992436]
[1633076573369,0.003,3112.0,3111.9,2.36592436]
[1633076573771,1.603,3112.0,3111.9,2.36592436]
[1633076574375,1.603,3112.0,3111.9,1.36592436]
[1633076574772,1.93705663,3112.0,3111.9,1.36592436]
[1633076574972,1.93705663,3112.0,3111.9,0.193]
[1633076575974,1.93705663,3112.0,3111.9,1.3137929]
[1633076576574,1.93705663,3112.0,3111.9,7.7398529]
[1633076577574,1.93705663,3112.0,3111.9,11.02877354]
[1633076577775,1.93705663,3112.0,3111.9,8.7398529]
[1633076577976,1.93705663,3112.0,3111.9,7.7398529]
[1633076578478,1.93705663,3112.0,3111.9,0.193]
[1633076579275,1.93705663,3112.0,3111.9,1.17776509]
[1633076579876,1.603,3112.0,3111.9,1.22531446]
[1633076580075,1.623,3112.0,3111.9,1.22531446]
[1633076580275,1.623,3112.0,3111.9,1.17776509]
[1633076580476,1.95705663,3112.0,3111.9,1.17776509]
[1633076581675,1.95705663,3112.0,3111.9,0.193]
[1633076582478,1.95705663,3112.0,3111.8,15.03596]
[1633076585377,1.623,3112.0,3111.9,0.03902878]
[1633076585587,1.623,3112.0,3111.9,0.23202878]
[1633076585780,0.003,3112.5,3112.0,8.55]
[1633076585981,0.003,3112.5,3112.4,13.524]
[1633076586179,0.003,3112.5,3112.4,42.17550197]
[1633076586379,0.003,3112.5,3112.4,42.95418349]
[1633076586584,0.003,3112.5,3112.4,51.95418349]
[1633076586779,0.003,3112.5,3112.4,52.87896622]
[1633076586988,0.003,3113.0,3112.7,5.58572356]
[1633076587192,0.003,3113.0,3112.9,9.30698257]
[1633076587380,0.003,3113.0,3112.9,14.93364384]
[1633076587581,0.003,3113.0,3112.9,46.25083894]
[1633076587780,3.66883956,3113.8,3113.1,2.97847933]
[1633076587981,0.006,3114.3,3113.9,4.81588]
[1633076588195,0.006,3114.3,3113.9,14.49547907]
[1633076588380,0.006,3114.3,3113.9,36.31324914]
[1633076588587,0.006,3114.3,3113.9,51.83990945]
[1633076588588,4.587e-05,3114.1,3113.9,51.83990945]
[1633076588789,4.587e-05,3114.1,3114.0,18.34790996]
[1633076588988,4.587e-05,3114.1,3114.0,34.69800958]
[1633076589184,4.587e-05,3114.1,3114.0,32.85745193]
[1633076589382,4.587e-05,3114.1,3114.0,23.39730696]
[1633076589582,4.587e-05,3114.1,3114.0,21.00017]
[1633076589785,4.587e-05,3114.1,3114.0,20.00017]
[1633076590982,4.587e-05,3114.1,3113.8,3.66883956]
[1633076591184,4.587e-05,3114.1,3113.9,0.193]
[1633076591386,2.30055306,3114.0,3113.9,0.193]
[1633076591785,3.51336801,3114.0,3113.9,0.193]
[1633076591987,2.21936801,3114.0,3113.9,0.193]
[1633076592590,3.51336801,3114.0,3113.3,0.003]
[1633076592787,3.51336801,3114.0,3113.4,0.193]
[1633076592788,1.00655306,3114.0,3113.4,0.193]
[1633076592988,0.34569543,3114.1,3113.4,0.193]
[1633076593188,0.34569543,3114.1,3113.5,0.003]
[1633076593189,1.6,3114.0,3113.5,0.003]
[1633076593390,1.6,3114.0,3113.6,0.193]
[1633076593986,2.60578968,3114.0,3113.6,0.193]
[1633076594990,1.00578968,3114.0,3113.6,0.193]
[1633076595389,0.34569543,3114.1,3113.6,0.193]
[1633076596089,4.587e-05,3114.1,3113.6,0.193]
[1633076596387,4.587e-05,3114.1,3114.0,8.704013]
[1633076596590,4.587e-05,3114.1,3114.0,42.73169002]
[1633076596788,4.587e-05,3114.1,3114.0,47.136013]
[1633076596990,0.34565603,3114.1,3114.0,48.136013]
[1633076597387,0.34565603,3114.1,3114.0,49.08294719]
[1633076597587,0.34565603,3114.1,3114.0,21.44294719]
[1633076597791,0.34565603,3114.1,3114.0,14.96794719]
[1633076597993,0.34565603,3114.1,3114.0,6.96794719]
[1633076598392,0.34565603,3114.1,3114.0,6.021013]
[1633076598593,0.34565603,3114.1,3114.0,5.017]
[1633076598793,0.34710303,3114.1,3114.0,5.017]
[1633076598996,0.34710303,3114.1,3114.0,0.193]
[1633076599191,0.34710303,3114.1,3113.7,0.193]
[1633076599192,1.30760202,3114.1,3113.7,0.193]
[1633076599393,1.09152398,3113.9,3113.7,0.193]
[1633076599995,1.09152398,3113.9,3113.4,0.003]
[1633076599996,1.294,3113.8,3113.4,0.003]
[1633076600193,1.09954198,3113.9,3113.4,0.003]
[1633076600396,1.33323724,3114.1,3113.3,0.003]
[1633076600594,1.30760202,3114.1,3113.3,0.003]
[1633076601395,0.9071035,3113.7,3113.3,0.003]
[1633076601597,0.83099569,3113.6,3113.3,0.003]
[1633076601794,0.83099569,3113.6,3113.4,0.03952961]
[1633076601994,0.00149287,3114.1,3113.4,0.03952961]
[1633076602198,0.00149287,3114.1,3113.5,0.003]
[1633076602597,0.8890634,3114.0,3113.5,0.003]
[1633076602795,0.8890634,3114.0,3113.3,0.003]
[1633076602997,0.88291351,3113.7,3113.3,0.003]
[1633076603397,0.88291351,3113.7,3113.2,0.003]
[1633076603797,0.00149287,3114.1,3113.2,0.003]
[1633076603997,0.00149287,3114.1,3113.2,1.003]
[1633076604196,0.00149287,3114.1,3113.2,0.003]
[1633076604397,0.00149287,3114.1,3113.3,0.003]
[1633076604798,0.96093273,3113.8,3113.3,0.003]
[1633076605600,0.96093273,3113.8,3113.2,0.003]
[1633076606000,1.00506433,3113.5,3113.2,0.003]
[1633076606300,0.00149287,3114.1,3113.2,0.003]
[1633076606301,0.76476257,3113.3,3113.2,0.003]
[1633076606501,0.00149287,3114.1,3113.2,0.003]
[1633076607100,0.00149287,3114.1,3113.3,0.03951624]
[1633076607303,0.00149287,3114.1,3113.5,4.81768]
[1633076607500,0.99767148,3114.0,3113.5,4.81768]
[1633076607701,0.99767148,3114.0,3113.5,4.82068]
[1633076607905,0.99767148,3114.0,3113.5,0.003]
[1633076608302,0.99767148,3114.0,3113.5,4.82065]
[1633076608902,0.86076886,3113.7,3113.5,4.82065]
[1633076609102,0.00137925,3113.9,3113.5,4.82065]
[1633076610311,0.93949335,3113.9,3113.5,4.82065]
[1633076610703,0.93949335,3113.9,3113.5,15.82065]
[1633076610704,0.00137925,3113.9,3113.5,15.82065]
[1633076611804,0.00137925,3113.9,3113.5,19.003]
[1633076612004,0.00137925,3113.9,3113.8,4.81727]
[1633076612406,0.00137925,3113.9,3113.8,4.85682693]
[1633076612610,0.00137925,3113.9,3113.8,0.03955693]
[1633076613006,1.21354148,3113.9,3113.8,0.03955693]
[1633076613409,1.55925014,3113.9,3113.5,11.003]
[1633076613604,0.34708791,3113.9,3113.5,11.003]
[1633076614204,0.34708791,3113.9,3113.5,15.82068]
[1633076614405,0.96292171,3113.7,3113.5,15.82068]
[1633076614606,0.87720606,3113.8,3113.5,15.82068]
[1633076615006,1.94708791,3113.9,3113.5,15.82068]
[1633076616006,0.78563293,3113.7,3113.5,15.82068]
[1633076616807,1.94708791,3113.9,3113.5,15.82068]
[1633076617908,1.60137925,3113.9,3113.6,0.03951653]
[1633076618107,0.82241137,3113.8,3113.6,0.03951653]
[1633076618910,1.16815944,3113.8,3113.6,4.81768]
[1633076619316,1.16815944,3113.8,3113.5,11.003]
[1633076619508,1.15553369,3113.7,3113.5,11.003]
[1633076620508,1.15553369,3113.7,3113.5,10.741121]
[1633076622510,1.15553369,3113.7,3113.5,10.722646]
[1633076623112,1.18050912,3113.7,3113.5,10.722646]
[1633076623513,1.18050912,3113.7,3113.6,0.03950316]
[1633076624316,1.18050912,3113.7,3113.5,10.722646]
[1633076624515,4.73901689,3113.7,3113.5,10.722646]
[1633076625519,9.55798689,3113.7,3113.5,10.722646]
[1633076625713,1.294,3113.6,3113.5,10.722646]
[1633076625917,9.55798689,3113.7,3113.5,10.722646]
[1633076626314,12.77076709,3113.7,3113.5,10.722646]
[1633076626513,12.74579166,3113.7,3113.5,10.722646]
[1633076627913,7.92682166,3113.7,3113.5,10.722646]
[1633076628915,7.58105389,3113.7,3113.5,10.722646]
[1633076629114,4.81904,3113.6,3113.5,10.722646]
[1633076629514,6.11304,3113.6,3113.5,9.57324148]
[1633076629771,4.81904,3113.6,3113.5,9.57324148]
[1633076629916,5.16486688,3113.6,3113.5,9.57324148]
[1633076630317,5.16620754,3113.6,3113.5,9.57324148]
[1633076632777,6.4255202,3113.7,3113.5,9.57324148]
[1633076632916,0.84619446,3113.6,3113.5,9.57324148]
[1633076633721,5.66523446,3113.6,3113.5,9.57324148]
[1633076634118,1.69142002,3113.5,3113.1,0.91932105]
[1633076634321,3.2213033,3113.4,3113.1,0.91932105]
[1633076634519,1.193,3113.3,3113.1,0.91932105]
[1633076634720,9.22599,3113.3,3113.1,0.91932105]
[1633076634918,9.22599,3113.3,3113.2,0.21230875]
[1633076635118,20.16994135,3113.3,3113.2,0.21230875]
[1633076635319,20.16994135,3113.3,3111.6,2.47947072]
[1633076635320,0.89204838,3113.1,3111.7,0.009]
[1633076635520,4.824,3112.6,3111.7,0.009]
[1633076635782,0.193,3112.5,3111.7,0.009]
[1633076635921,1.193,3112.5,3111.7,0.009]
[1633076636119,4.824,3112.6,3112.5,9.807]
[1633076636323,11.9884391,3112.6,3112.5,9.807]
[1633076636519,11.9884391,3112.6,3112.5,9.813]
[1633076636921,15.2026591,3112.6,3112.5,9.813]
[1633076638524,16.2026591,3112.6,3112.5,9.813]
[1633076638924,17.2664285,3112.6,3112.5,9.813]
[1633076639123,15.9724285,3112.6,3112.5,9.813]
[1633076639323,13.9086591,3112.6,3112.5,9.813]
[1633076639825,10.6944391,3112.6,3112.5,9.813]
[1633076640425,9.83828,3112.6,3112.5,9.813]
[1633076640826,10.11871161,3112.6,3112.5,9.813]
[1633076642031,11.11871161,3112.6,3112.5,9.813]
[1633076642228,10.11871161,3112.6,3112.5,9.813]
[1633076642428,11.11871161,3112.6,3112.5,9.813]
[1633076642833,12.41271161,3112.6,3112.5,9.813]
[1633076643430,11.11871161,3112.6,3112.5,9.813]
[1633076645488,12.71871161,3112.6,3112.5,9.813]
[1633076645892,12.43926927,3112.6,3112.5,9.813]
[1633076646090,13.31520811,3112.6,3112.5,9.813]
[1633076646491,13.59465045,3112.6,3112.5,9.813]
[1633076646892,12.71871161,3112.6,3112.5,9.813]
[1633076647692,7.89743161,3112.6,3112.5,9.813]
[1633076648295,8.91645327,3112.6,3112.5,9.813]
[1633076648493,7.89743161,3112.6,3112.5,9.813]
[1633076648897,3.21381,3113.2,3112.5,9.813]
[1633076648898,11.0791,3113.4,3113.1,7.83875304]
[1633076649093,3.64114752,3113.5,3113.2,2.9849998]
[1633076649295,3.64114752,3113.5,3113.3,0.193]
[1633076649495,3.64114752,3113.5,3113.4,1.29081066]
[1633076649703,3.64114752,3113.5,3113.4,2.29684913]
[1633076649896,3.64114752,3113.5,3113.4,1.29081066]
[1633076651096,3.64114752,3113.5,3113.4,0.193]
[1633076651296,3.6421776,3113.5,3113.4,0.43893007]
[1633076651895,3.78156366,3113.5,3113.4,0.193]
[1633076652296,3.78156366,3113.5,3113.4,10.486924]
[1633076652496,0.003,3114.0,3113.5,0.85279104]
[1633076652697,0.003,3114.0,3113.6,3.224263]
[1633076652896,0.003,3114.0,3113.7,3.21119]
[1633076653097,0.003,3114.0,3113.8,0.193]
[1633076653298,0.003,3114.0,3113.8,0.90386244]
[1633076653499,0.003,3114.0,3113.9,1.294]
[1633076653696,0.003,3114.0,3113.9,0.193]
[1633076654497,0.003,3114.0,3113.9,1.487]
[1633076655297,0.003,3114.0,3113.9,0.193]
[1633076655499,1.603,3114.0,3113.9,0.193]
[1633076655699,1.603,3114.0,3113.9,1.487]
[1633076656298,2.34701305,3114.0,3113.9,1.487]
[1633076656498,1.603,3114.0,3113.9,2.54028848]
[1633076656701,1.603,3114.0,3113.9,1.8027584]
[1633076657099,1.603,3114.0,3113.9,4.81472564]
[1633076657500,1.67249599,3114.0,3113.9,2.38463305]
[1633076657702,1.67249599,3114.0,3113.9,3.17499252]
[1633076657899,1.67249599,3114.0,3113.9,1.29836]
[1633076658501,1.67249599,3114.0,3113.9,1.49136]
[1633076660503,1.67249599,3114.0,3113.9,2.49136]
[1633076660705,1.67249599,3114.0,3113.9,4.99633176]
[1633076660902,1.67249599,3114.0,3113.9,9.8195498]
[1633076661102,1.67249599,3114.0,3113.9,8.5255498]
[1633076661300,1.67249599,3114.0,3113.9,9.8195498]
[1633076661502,1.67249599,3114.0,3113.9,12.75857824]
[1633076661707,1.67349401,3114.0,3113.9,9.8195498]
[1633076661904,1.67349401,3114.0,3113.9,8.8195498]
[1633076662103,1.60399802,3114.0,3113.9,9.8195498]
[1633076662303,1.60399802,3114.0,3113.9,10.13530835]
[1633076662903,1.67349401,3114.0,3113.9,9.8195498]
[1633076663107,1.67349401,3114.0,3113.9,9.81655968]
[1633076663703,0.10279104,3114.0,3113.9,19.24554969]
[1633076663906,0.006,3114.4,3113.9,19.24554969]
[1633076663907,0.009,3115.5,3114.6,0.1027]
[1633076664103,0.009,3115.5,3114.6,6.26107921]
[1633076664303,0.99356384,3115.3,3114.6,7.55507921]
[1633076664905,0.99356384,3115.3,3114.6,13.37019921]
[1633076665304,0.99356384,3115.3,3114.6,12.37019921]
[1633076665505,0.99356384,3115.3,3114.6,13.37019921]
[1633076666106,0.99356384,3115.3,3114.6,12.37019921]
[1633076666308,0.99356384,3115.3,3114.6,13.37019921]
[1633076667305,0.99356384,3115.3,3114.6,12.37019921]
[1633076667505,0.99356384,3115.3,3114.6,13.37019921]
[1633076667705,0.99356384,3115.3,3114.6,13.72089506]
[1633076668305,0.99356384,3115.3,3114.6,12.07619921]
[1633076668511,0.04047225,3114.7,3114.6,11.07619921]
[1633076669107,0.04047225,3114.7,3114.6,11.82397054]
[1633076669507,0.04047225,3114.7,3114.6,14.11797054]
[1633076670510,0.04047225,3114.7,3114.6,14.12199054]
[1633076671109,0.04047225,3114.7,3114.6,12.82799054]
[1633076671310,0.04047225,3114.7,3114.6,14.12199054]
[1633076671509,0.04047225,3114.7,3114.6,34.6409137]
[1633076672315,0.04148085,3114.7,3114.6,34.6409137]
[1633076673113,0.0070086,3114.7,3114.6,34.6409137]
[1633076673312,0.0070086,3114.7,3114.6,34.9916097]
[1633076673913,0.0070086,3114.7,3114.6,42.6409137]
[1633076674116,0.04148085,3114.7,3114.6,45.1373467]
[1633076674916,0.04148085,3114.7,3114.6,42.66492974]
[1633076675116,0.04148085,3114.7,3114.6,23.72492974]
[1633076675314,1.64148085,3114.7,3114.6,21.37421921]
[1633076675914,1.64148085,3114.7,3114.6,12.08021921]
[1633076676115,1.64148085,3114.7,3114.6,11.07619921]
[1633076676916,0.04148085,3114.7,3114.6,11.07619921]
[1633076677518,0.04148085,3114.7,3114.6,12.07619921]
[1633076677919,0.04148085,3114.7,3114.6,13.37019921]
[1633076678119,0.04148085,3114.7,3114.6,12.07619921]
[1633076678719,0.0070086,3114.7,3114.6,12.43089136]
[1633076678922,0.0070086,3114.7,3114.6,40.66489136]
[1633076679119,0.0070086,3114.7,3114.6,39.37089136]
[1633076679320,0.0070086,3114.7,3114.6,39.02019521]
[1633076679527,0.04148085,3114.7,3114.6,12.08019521]
[1633076679720,0.04148085,3114.7,3114.6,20.87432774]
[1633076679920,0.04148085,3114.7,3114.6,12.87432774]
[1633076680122,0.04148085,3114.7,3114.6,14.16832774]
[1633076680321,0.04148085,3114.7,3114.6,22.16832774]
[1633076680523,0.04148085,3114.7,3114.6,28.64332774]
[1633076680724,0.04148085,3114.7,3114.6,20.87432774]
[1633076680926,0.04148085,3114.7,3114.6,12.87432774]
[1633076681324,0.04148085,3114.7,3114.6,22.16832774]
[1633076681728,0.04148085,3114.7,3114.6,47.58332774]
[1633076682325,0.006,3115.2,3114.6,47.58332774]
[1633076682326,0.009,3115.5,3114.6,47.58332774]
[1633076682527,0.01148085,3115.6,3114.8,1.46325454]
[1633076682728,0.01148085,3115.6,3115.0,0.003]
[1633076682927,0.01148085,3115.6,3115.3,1.10907463]
[1633076683132,0.01148085,3115.6,3115.4,0.193]
[1633076683530,0.01148085,3115.6,3115.4,5.00738]
[1633076684128,0.01148085,3115.6,3115.5,0.3681755]
[1633076684933,0.03625409,3115.6,3115.4,5.00738]
[1633076685129,0.03625409,3115.6,3115.4,4.95738]
[1633076685729,0.01086077,3115.6,3115.4,0.143]
[1633076686131,0.89666587,3115.7,3115.4,0.143]
[1633076686332,0.006,3115.7,3115.4,0.143]
[1633076686528,0.006,3115.7,3115.4,4.95756]
[1633076686788,0.006,3115.7,3115.4,4.81466]
[1633076687130,0.006,3115.7,3115.4,5.95648395]
[1633076687330,0.006,3115.7,3115.4,9.16571395]
[1633076687530,0.006,3115.7,3115.4,4.35115395]
[1633076687731,0.006,3115.7,3115.5,0.77993634]
[1633076687934,0.006,3115.7,3115.5,5.59386634]
[1633076689135,0.006,3115.7,3115.5,4.81393]
[1633076689332,0.01196973,3115.6,3115.4,0.0001]
[1633076690536,0.01196973,3115.6,3115.0,0.196]
[1633076690935,0.01196973,3115.6,3115.0,0.186]
[1633076691341,0.003,3115.5,3115.0,2.28025314]
[1633076691732,0.003,3115.5,3115.0,7.09548314]
[1633076691934,0.003,3115.5,3115.0,6.99548314]
[1633076693135,0.003,3115.5,3115.0,4.90123]
[1633076693334,0.01391457,3115.3,3115.0,0.086]
[1633076694134,0.94389662,3115.1,3115.0,0.086]
[1633076694534,3.2114384,3115.4,3115.0,0.086]
[1633076694734,0.0009984,3115.4,3115.0,0.086]
[1633076694934,0.0009984,3115.4,3115.1,0.38046789]
[1633076695534,0.98948081,3115.3,3115.1,0.38046789]
[1633076698937,3.21006,3114.7,3114.6,0.1027]
[1633076699137,0.21001619,3114.7,3114.6,0.1027]
[1633076699739,3.31001619,3114.7,3114.6,0.1027]
[1633076699937,5.31250435,3114.7,3114.6,0.1027]
[1633076700137,2.62883912,3114.7,3114.6,0.1027]
[1633076700537,2.62883912,3114.7,3114.6,0.29278553]
[1633076701338,4.62422247,3114.7,3114.6,0.29278553]
[1633076702338,5.5978474,3114.6,3114.0,0.003]
[1633076702540,4.81802,3114.3,3113.9,0.003]
[1633076702940,1.01005321,3114.1,3113.9,0.003]
[1633076703141,6.42402,3114.4,3113.9,0.003]
[1633076703142,0.84094461,3114.0,3113.9,0.003]
[1633076703743,15.30297461,3114.0,3113.9,0.003]
[1633076704141,15.30297461,3114.0,3113.5,0.006]
[1633076704142,16.30297461,3114.0,3113.5,0.006]
[1633076704343,3.2208327,3113.7,3113.2,0.006]
[1633076704544,0.71147248,3113.3,3113.2,0.006]
[1633076704802,4.81938,3113.3,3113.2,0.006]
[1633076704941,6.11338,3113.3,3113.2,0.006]
[1633076705743,6.95048253,3113.3,3113.2,0.006]
[1633076706941,8.55048253,3113.3,3113.2,0.006]
[1633076708746,9.55048253,3113.3,3113.2,0.006]
[1633076709350,9.55048253,3113.3,3113.2,0.01605782]
[1633076710146,9.74348253,3113.3,3113.2,0.01605782]
[1633076710346,9.74348253,3113.3,3112.9,1.14066839]
[1633076710347,6.4,3113.0,3112.9,1.14066839]
[1633076710546,6.3,3112.9,3112.4,0.003]
[1633076710808,6.3,3112.9,3111.7,0.006]
[1633076710809,0.008197,3112.6,3111.7,0.006]
[1633076710946,0.008197,3112.6,3112.5,0.003]
[1633076711147,0.201197,3112.6,3112.5,0.003]
[1633076711350,0.201197,3112.6,3111.8,2.47037949]
[1633076711351,0.201197,3112.6,3111.9,0.006]
[1633076711545,1.140393,3112.6,3111.9,0.75354953]
[1633076711746,1.19517377,3112.5,3111.9,0.75354953]
[1633076711946,0.193,3112.4,3112.0,0.006]
[1633076712351,5.01386,3112.4,3112.0,0.006]
[1633076712548,0.008126,3112.2,3112.0,0.006]
[1633076712746,0.008126,3112.2,3111.6,0.006]
[1633076712946,0.008126,3112.2,3111.7,2.47144287]
[1633076713146,3.21418,3112.1,3111.7,2.47144287]
[1633076713346,3.21418,3112.1,3111.8,0.006]
[1633076713546,4.02802924,3112.1,3111.8,0.006]
[1633076714347,4.02802924,3112.1,3111.6,0.006]
[1633076714548,4.02802924,3112.1,3111.7,2.47421142]
[1633076714745,4.02802924,3112.1,3111.9,0.09431305]
[1633076715145,3.21418,3112.1,3112.0,0.006]
[1633076716346,5.10533104,3112.1,3112.0,0.006]
[1633076716548,5.10533104,3112.1,3111.6,0.81634451]
[1633076716745,5.10533104,3112.1,3111.7,2.48716981]
[1633076716945,5.10533104,3112.1,3111.7,0.006]
[1633076717146,5.10533104,3112.1,3111.8,2.48912862]
[1633076717346,1.89115104,3112.1,3111.9,2.48129038]
[1633076717547,0.77506346,3112.1,3112.0,3.77673212]
[1633076717748,0.77506346,3112.1,3112.0,3.78273212]
[1633076718147,0.77506346,3112.1,3112.0,4.5184118]
[1633076718348,0.77506346,3112.1,3112.0,5.56390564]
[1633076718747,0.77506346,3112.1,3112.0,4.26990564]
[1633076719151,0.77506346,3112.1,3112.0,5.56390564]
[1633076719349,0.77506346,3112.1,3112.0,4.26990564]
[1633076719948,0.77506346,3112.1,3112.0,4.50982142]
[1633076720749,0.77506346,3112.1,3112.0,3.77414174]
[1633076720948,0.77506346,3112.1,3112.0,2.7286479]
[1633076721351,0.77506346,3112.1,3112.0,2.7246119]
[1633076721752,0.92063898,3112.1,3112.0,3.20411272]
[1633076722547,0.92063898,3112.1,3112.0,2.48469612]
[1633076722749,0.92063898,3112.1,3112.0,0.006]
[1633076722949,5.93483898,3112.1,3112.0,0.006]
[1633076723148,5.93483898,3112.1,3111.6,0.006]
[1633076723550,0.95432873,3111.8,3111.6,0.006]
[1633076725552,3.21433,3111.9,3111.7,0.23983473]
[1633076725952,3.21433,3111.9,3111.8,0.006]
[1633076726552,0.96806346,3112.1,3111.8,0.006]
[1633076726957,0.96806346,3112.1,3111.9,2.46219577]
[1633076727152,0.77506346,3112.1,3112.0,14.81355]
[1633076727352,0.77506346,3112.1,3112.0,15.98553285]
[1633076727553,0.77506346,3112.1,3112.0,7.28553285]
[1633076728153,0.77506346,3112.1,3112.0,2.46598285]
[1633076728552,0.77506346,3112.1,3112.0,0.006]
[1633076728953,0.77506346,3112.1,3111.9,0.006]
[1633076729753,0.77506346,3112.1,3111.7,0.006]
[1633076730955,0.77506346,3112.1,3111.6,0.006]
[1633076731157,0.77506346,3112.1,3111.8,0.23987548]
[1633076731554,0.244,3111.9,3111.8,0.23987548]
[1633076736358,1.14462174,3111.9,3111.8,0.23987548]
[1633076738064,2.26895163,3111.9,3111.8,0.23987548]
[1633076738272,1.25857455,3111.0,3110.6,2.92044604]
[1633076738464,3.59604075,3111.9,3111.7,1.17144363]
[1633076738465,4.25597239,3111.8,3111.7,1.17144363]
[1633076738663,4.25597239,3111.8,3110.8,2.81437895]
[1633076738664,3.21564,3111.0,3110.8,2.81437895]
[1633076738864,3.21507,3111.0,3110.5,2.483]
[1633076739263,3.21507,3111.0,3110.5,1.12338172]
[1633076739463,3.21507,3111.0,3110.6,2.41349496]
[1633076739663,3.21507,3111.0,3110.7,0.80329718]
[1633076740464,3.21507,3111.0,3110.8,2.40938854]
[1633076740663,3.21507,3111.0,3110.7,0.80329718]
[1633076740864,3.21507,3111.0,3110.8,2.4087141]
[1633076741264,4.82282,3110.9,3110.8,2.4087141]
[1633076741464,4.82282,3110.9,3110.7,0.80329718]
[1633076741666,3.21507,3111.0,3110.5,1.12338172]
[1633076741869,3.21507,3111.0,3110.5,0.003]
[1633076742266,3.21507,3111.0,3110.3,2.41664277]
[1633076742668,3.21507,3111.0,3110.4,0.003]
[1633076742669,0.87672262,3110.9,3110.4,0.003]
[1633076742865,3.21507,3111.0,3110.5,1.03421134]
[1633076743066,4e-05,3111.0,3110.4,0.003]
[1633076743265,4e-05,3111.0,3110.5,0.003]
[1633076744124,4e-05,3111.0,3110.4,0.003]
[1633076744523,4e-05,3111.0,3110.5,4.82205]
[1633076744930,4e-05,3111.0,3110.5,4.82505]
[1633076745330,4e-05,3111.0,3110.7,1.09063219]
[1633076745532,4e-05,3111.0,3110.5,4.82505]
[1633076746324,4e-05,3111.0,3110.5,0.003]
[1633076746523,4e-05,3111.0,3110.6,0.91529627]
[1633076746925,1.60004,3111.0,3110.6,0.91529627]
[1633076747125,1.60004,3111.0,3110.4,0.003]
[1633076747329,0.87474716,3110.8,3110.4,0.003]
[1633076748331,1.14081295,3110.8,3110.4,0.003]
[1633076749026,3.2153,3110.7,3110.4,0.003]
[1633076749227,3.2153,3110.7,3110.2,0.84506117]
[1633076749628,3.2153,3110.7,3110.2,5.66756117]
[1633076749829,3.2153,3110.7,3110.4,0.93401747]
[1633076750028,3.2153,3110.7,3110.2,0.84506117]
[1633076750232,3.2153,3110.7,3109.9,0.81224063]
[1633076750233,0.79506671,3110.3,3109.9,0.81224063]
[1633076750431,0.003,3110.5,3109.7,0.193]
[1633076750631,0.003,3110.0,3109.7,0.193]
[1633076750833,0.003,3110.0,3109.7,5.01622]
[1633076751030,0.003,3110.0,3109.8,2.38861737]
[1633076751229,0.003,3110.0,3109.9,5.68038854]
[1633076751431,0.003,3110.0,3109.9,8.9865486]